[Event "Superbet Blitz Poland 2022"]
[Site "Warsaw"]
[Date "2022.05.23"]
[Round "13.5"]
[White "Anand, Viswanathan"]
[Black "Shevchenko, Kirill"]
[Result "1-0"]
[ECO "B50"]
[WhiteElo "2751"]
[BlackElo "2644"]
[Annotator "TA"]
[PlyCount "93"]
[EventDate "2022.05.22"]
[EventType "tourn"]
[EventCountry "POL"]
[SourceTitle "playchess.com"]
[Source "ChessBase"]
[SourceQuality "1"]
[TimeControl "300+2"]

{[%evp 9,93,-1,33,12,7,10,17,14,22,-4,12,-3,4,-22,-21,-31,-24,-29,-5,-15,19,10,7,-20,0,0,0,-12,13,0,0,0,0,0,0,0,18,0,44,37,64,4,24,33,59,39,65,51,218,217,215,215,195,222,216,214,330,312,302,95,290,195,189,136,170,168,374,387,381,363,387,357,301,295,515,508,29989,29990,29990,29991,29991,29992,29994,29990,29997,29998]} 1. e4 {[%emt 0:00:01]} c5 {[%emt 0:00:01]} 2. Nf3 {[%emt 0:00:02]} d6 {[%emt 0:00:01]} 3. Bc4 {[%emt 0:00:01]} Nf6 {[%emt 0:00:09]} 4. d3 {[%emt 0:00:01][%cal Bd2d3,Bd3d4][%mdl 32]} e6 {[%emt 0:00:09]} 5. O-O {[%emt 0:00:03]} g6 {[%emt 0:00:14]} 6. Re1 {[%emt 0:00:04] B50: Sicilian: 2...d6, Miscellaneous.} Bg7 {[%emt 0:00:02]} 7. c3 {[%emt 0:00:02]} O-O {[%emt 0:00:03]} 8. Bb3 {[%emt 0:00:00] [#] The position is equal.} b6 $146 {[%emt 0:00:46]} ({Predecessor:} 8... b5 9. d4 Bb7 10. Bc2 Nc6 11. a3 Qc7 12. Be3 Ng4 13. dxc5 Nxe3 14. Rxe3 dxc5 {0-1 (54) Marczuk,A (1802)-Dordzhieva,D (2128) Budva 2013}) 9. d4 {[%emt 0:00:07]} Bb7 {[%emt 0:00:11]} 10. Bc2 {[%emt 0:00:10]} Nc6 {[%emt 0:00:10]} 11. a3 {[%emt 0:00:02]} Rc8 {[%emt 0:00:10]} 12. h3 {[%emt 0:00:02]} Qc7 {[%emt 0:00:02]} 13. Bd3 {[%emt 0:00:07]} a6 {[%emt 0:00:58]} 14. Be3 {[%emt 0:00:07]} Rfd8 {[%emt 0:00:03]} 15. Nbd2 {[%emt 0:00:03]} b5 {[%emt 0:00:02]} 16. b4 {[%emt 0:00:07]} c4 {[%emt 0:00:14]} 17. Bc2 {[%emt 0:00:02]} a5 {[%emt 0:00:06]} 18. Nf1 {[%emt 0:00:06]} Ra8 {[%emt 0:00:05]} 19. Rc1 {[%emt 0:00:12]} axb4 {[%emt 0:00:06]} 20. axb4 {[%emt 0:00:02]} Ra3 {[%emt 0:00:12]} 21. Bb1 {[%emt 0:00:08]} Ne7 {[%emt 0:00:15]} 22. Ng3 {[%emt 0:00:02]} Rda8 {[%emt 0:00:11]} 23. Bf4 {[%emt 0:00:08]} Qb6 {[%emt 0:00:03]} 24. Qd2 {[%emt 0:00:05]} Nd7 {[%emt 0:00:43]} 25. Bg5 {[%emt 0:00:04]} ({Better is} 25. h4 $14) 25... f6 {[%emt 0:00:07]} 26. Bh6 {[%emt 0:00:01]} Qc7 {[%emt 0:00:11]} 27. h4 {[%emt 0:00:05][%cal Bh3h4,Bh4h5][%mdl 32]} Nf8 {[%emt 0:00:08]} 28. h5 {[%emt 0:00:12]} g5 $2 {[%emt 0:00:09] White now steadily converts the win.} (28... e5 $14) 29. Bxg7 $18 {[%emt 0:00:21]} Kxg7 {[%emt 0:00:00]} 30. e5 {[%emt 0:00:13]} dxe5 {[%emt 0:00:03]} 31. dxe5 {[%emt 0:00:07]} Bxf3 {[%emt 0:00:11]} 32. gxf3 {[%emt 0:00:15] Hoping for exf6+.} ({Weaker is} 32. exf6+ Kxf6 33. gxf3 Qf4 $14) 32... f5 {[%emt 0:00:05]} (32... h6 {might work better.}) 33. Qxg5+ {[%emt 0:00:03]} Kh8 {[%emt 0:00:00]} 34. Red1 {[%emt 0:00:34]} (34. Qf6+ $18 Kg8 35. Rcd1 (35. h6 Nd5 $15) 35... Rxc3 36. Qg5+ (36. h6 Neg6 $18) 36... Kf7 37. h6) 34... R3a6 $2 {[%emt 0:00:07]} (34... Nd5 $16) 35. f4 {[%emt 0:00:05]} Ng8 {[%emt 0:00:08]} 36. Rd4 {[%emt 0:00:08]} ({White should play} 36. Kh2 $18) 36... Re8 {[%emt 0:00:02]} 37. Rcd1 {[%emt 0:00:02]} Re7 $2 {[%emt 0:00:03]} (37... h6 {was necessary.} 38. Qh4 Rea8) 38. h6 {[%emt 0:00:03]} (38. Rd8 Rg7 39. Qh4 Rg4 40. Qxg4 fxg4 $18) 38... Ra8 {[%emt 0:00:04] Against Rd8} 39. Rd6 {[%emt 0:00:07][%cal Bd4d6,Bd6d8,Bd8g8][%mdl 32]} Rae8 {[%emt 0:00:01] [#]} 40. Bxf5 $1 {[%emt 0:00:07][%mdl 512]} exf5 {[%emt 0:00:01]} 41. Nxf5 {[%emt 0:00:02]} Ng6 $2 {[%emt 0:00:01]} (41... Rf7 42. Qg7+ Rxg7+ 43. hxg7+ Qxg7+ 44. Nxg7 Kxg7) 42. Nxe7 {[%emt 0:00:11]} Rxe7 {[%emt 0:00:01]} (42... Qxe7 $18 43. Kf1 Qxg5 44. fxg5 Rxe5) 43. Rd8 {[%emt 0:00:03] White mates.} Rf7 {[%emt 0:00:02]} 44. e6 {[%emt 0:00:09][%csl LRb5,LRf7]} Rxf4 {[%emt 0:00:10]} 45. R1d7 {[%emt 0:00:07]} Qc6 {[%emt 0:00:00]} 46. Qxf4 {[%emt 0:00:17]} Nxf4 {[%emt 0:00:01] [#]} 47. Rxg8+ $1 {[%emt 0:00:02][%mdl 576] Back Rank, Clearance.  Weighted Error Value: White=0.19 (very precise) /Black=0.45} 1-0

[Event "Superbet Blitz Poland 2022"]
[Site "Warsaw"]
[Date "2022.05.23"]
[Round "14.1"]
[White "Aronian, Levon"]
[Black "Anand, Viswanathan"]
[Result "1-0"]
[ECO "C49"]
[WhiteElo "2765"]
[BlackElo "2751"]
[Annotator "TA"]
[PlyCount "73"]
[EventDate "2022.05.22"]
[EventType "tourn"]
[EventCountry "POL"]
[SourceTitle "playchess.com"]
[Source "ChessBase"]
[SourceQuality "1"]
[TimeControl "300+2"]

{[%evp 12,73,8,0,8,-3,-9,-18,-17,-33,-36,-39,-39,-40,-16,-37,-14,-43,-24,-47,-31,-28,0,0,0,-34,0,-12,-35,-6,37,48,91,75,220,222,236,229,230,151,162,155,165,171,234,223,268,264,260,256,259,270,343,360,346,353,326,309,314,292,756,691,29982,29983]} 1. e4 {[%emt 0:00:01]} e5 {[%emt 0:00:01]} 2. Nf3 {[%emt 0:00:01]} Nf6 {[%emt 0:00:01]} 3. Nc3 {[%emt 0:00:01]} Nc6 {[%emt 0:00:01]} 4. Bb5 {[%emt 0:00:01]} Bb4 {[%emt 0:00:02]} 5. O-O {[%emt 0:00:03]} O-O {[%emt 0:00:02]} 6. Bxc6 {[%emt 0:00:01]} dxc6 {[%emt 0:00:02]} 7. d3 {[%emt 0:00:01]} Nd7 {[%emt 0:00:04] C49: Four Knights: 4 Bb5 Bb4.} 8. Kh1 $5 {[%emt 0:00:06][%mdl 4] [#] An interesting side line.} Re8 $146 {[%emt 0:00:04]} ({Predecessor:} 8... f6 9. Ne2 Re8 10. Nfg1 Nf8 11. g3 Bg4 12. f3 Bh5 13. Be3 Bd6 14. Rf2 c5 15. Qf1 {1-0 (42) Schubert,H-Estrin,Y ICCF corr 1960}) 9. Rg1 {[%emt 0:00:14]} Nf8 {[%emt 0:00:12] The position is equal.} 10. g4 {[%emt 0:00:01]} Bd6 {[%emt 0:00:04]} 11. Qf1 {[%emt 0:00:08]} a5 {[%emt 0:00:08]} 12. a4 {[%emt 0:00:02]} Bd7 {[%emt 0:00:11]} 13. Qh3 {[%emt 0:00:12]} b5 {[%emt 0:00:02]} 14. Qh5 {[%emt 0:00:10]} Qf6 {[%emt 0:00:06]} 15. Rg3 {[%emt 0:00:07]} Bc5 {[%emt 0:00:40]} 16. Be3 {[%emt 0:00:12]} Bxe3 {[%emt 0:00:24]} (16... g6 {keeps more tension.} 17. Qh6 Bxg4 18. Nd2 Bxe3 19. fxe3 Be6) 17. fxe3 {[%emt 0:00:01]} b4 {[%emt 0:00:01]} 18. Ne2 {[%emt 0:00:08]} c5 {[%emt 0:00:01][%cal Oc5c4]} 19. b3 {[%emt 0:00:03]} c4 {[%emt 0:00:01]} (19... g6 $5 {[%cal Rg6h5]} 20. g5 Qb6 $11) 20. bxc4 {[%emt 0:00:06]} Rab8 {[%emt 0:00:02]} 21. Nc1 {[%emt 0:00:05]} Qb6 {[%emt 0:00:21]} 22. Nb3 {[%emt 0:00:15]} (22. Nxe5 Qf6 23. d4 g6 $15) 22... Qxe3 {[%emt 0:00:32] This move loses the game for Black.} (22... Qf6 $16 {keeps fighting.}) 23. Nxe5 $18 {[%emt 0:00:06] Pair of Knights!} Qf4 {[%emt 0:00:05]} 24. Nxd7 {[%emt 0:00:13]} Nxd7 {[%emt 0:00:02]} 25. Qf5 {[%emt 0:00:01]} (25. Nxa5 $2 Re5 26. g5 Rxa5 $19) 25... Qd6 {[%emt 0:00:04]} 26. Rf1 {[%emt 0:00:03]} (26. Qxa5 c5 27. Rg2 f6 $15) (26. Nxa5 $2 Re5 27. c5 Rxf5 28. cxd6 Rxa5 29. dxc7 Rc8 $19) 26... Re7 {[%emt 0:00:16]} 27. Qd5 {[%emt 0:00:09]} (27. Nxa5 Ra8 28. Qb5 (28. Rh3 h6 $16) 28... Ne5 $16) 27... Ne5 {[%emt 0:00:14]} (27... Qxd5 $142 28. cxd5 Ne5) 28. Qxa5 {[%emt 0:00:11]} Qd7 {[%emt 0:00:08]} 29. Qc5 {[%emt 0:00:11]} Nc6 {[%emt 0:00:11]} 30. Qf5 {[%emt 0:00:23]} Qe8 {[%emt 0:00:06]} 31. g5 {[%emt 0:00:10]} ({Don't play} 31. Rh3 h6 32. Qf2 Re5 $18) 31... Ra8 {[%emt 0:00:04]} 32. Rh3 {[%emt 0:00:10]} g6 {[%emt 0:00:04]} 33. Qf4 {[%emt 0:00:14]} ({Much less strong is} 33. Qf6 Qd7 $18) 33... Qf8 {[%emt 0:00:22]} 34. d4 {[%emt 0:00:01]} ({Don't do} 34. Qh4 Qg7 35. Rf6 Ne5) 34... Rxa4 {[%emt 0:00:03]} 35. e5 {[%emt 0:00:01]} Na5 $2 {[%emt 0:00:06]} (35... Ra3 36. Qh4 Qg7) 36. Nc5 {[%emt 0:00:10] [#] Threatens to win with Ne4.} Ra2 {[%emt 0:00:02]} 37. Ne4 {[%emt 0:00:01] Weighted Error Value: White=0.11 (very precise) /Black=0.38} 1-0

[Event "Superbet Blitz Poland 2022"]
[Site "Warsaw"]
[Date "2022.05.23"]
[Round "14.2"]
[White "Shevchenko, Kirill"]
[Black "So, Wesley"]
[Result "1/2-1/2"]
[ECO "C78"]
[WhiteElo "2644"]
[BlackElo "2766"]
[Annotator "TA"]
[PlyCount "174"]
[EventDate "2022.05.22"]
[EventType "tourn"]
[EventCountry "POL"]
[SourceTitle "playchess.com"]
[Source "ChessBase"]
[SourceQuality "1"]
[TimeControl "300+2"]

{[%evp 14,174,2,2,7,0,0,0,18,9,48,0,43,0,0,-10,31,31,30,18,41,45,67,10,16,6,26,32,34,45,119,118,115,40,84,81,83,88,93,-75,-45,-56,335,279,302,0,0,0,154,100,242,106,400,400,466,220,235,232,212,227,227,227,433,433,495,495,592,592,808,720,5057,5057,1262,592,592,495,495,495,495,495,495,495,592,592,592,592,592,592,592,592,588,592,588,581,581,581,581,581,573,518,573,573,566,566,559,552,552,550,550,550,542,542,535,527,520,520,520,518,518,511,504,495,452,431,488,488,488,488,488,488,488,488,488,370,488,488,448,279,279,279,279,279,279,279,279,279,279,279,279,279,279,279,258,196,258,196,258,258,258,258,272,208,279]} 1. e4 {[%emt 0:00:01]} e5 {[%emt 0:00:01]} 2. Nf3 {[%emt 0:00:01]} Nc6 {[%emt 0:00:01]} 3. Bb5 {[%emt 0:00:01]} a6 {[%emt 0:00:01]} 4. Ba4 {[%emt 0:00:01]} Nf6 {[%emt 0:00:01]} 5. Nc3 {[%emt 0:00:05]} Bc5 {[%emt 0:00:14]} 6. O-O {[%emt 0:00:05]} b5 {[%emt 0:00:05]} 7. Bb3 {[%emt 0:00:01]} O-O {[%emt 0:00:06]} 8. d3 {[%emt 0:00:18]} h6 {[%emt 0:00:01] C78: Ruy Lopez: Archangelsk and Möller Defences.} 9. a4 {[%emt 0:00:05]} b4 {[%emt 0:00:11]} 10. Nd5 {[%emt 0:00:01]} d6 {[%emt 0:00:02] The position is equal.} 11. Be3 {[%emt 0:00:24]} Rb8 {[%emt 0:00:42] [#]} 12. a5 $146 {[%emt 0:00:13]} (12. Bxc5 $14 dxc5 13. Ne3) ({Predecessor:} 12. h3 Be6 13. a5 Bxe3 14. fxe3 Nd7 15. d4 Na7 16. Qe1 c5 17. dxe5 Nxe5 18. Nxe5 dxe5 {1-0 (61) Safarli,E (2601)-Tari,A (2634) Moscow 2019}) 12... Bxe3 {[%emt 0:00:11]} 13. fxe3 {[%emt 0:00:04] Strongly threatening Nxf6+.} Nxd5 {[%emt 0:00:03]} 14. Bxd5 {[%emt 0:00:04]} Ne7 {[%emt 0:00:01]} (14... Nxa5 $5 {[%cal Rc7c6]} 15. Bxf7+ (15. Rxa5 c6 $11) 15... Rxf7 16. Rxa5 c6 $11) 15. Bc4 {[%emt 0:00:17]} c6 {[%emt 0:00:14]} 16. Qe1 {[%emt 0:00:18]} d5 {[%emt 0:00:12]} 17. Bb3 {[%emt 0:00:07]} f6 {[%emt 0:00:26]} 18. exd5 {[%emt 0:00:37]} (18. d4 $1 $14) 18... cxd5 $11 {[%emt 0:00:01]} 19. e4 {[%emt 0:00:01]} Kh8 {[%emt 0:00:25]} 20. exd5 {[%emt 0:00:17]} Bb7 {[%emt 0:00:18]} 21. d4 {[%emt 0:00:16]} (21. Qxb4 Bxd5 22. Qc3 Bxb3 23. cxb3 Nd5 $17) 21... exd4 {[%emt 0:00:14]} (21... Bxd5 $14 22. dxe5 Bxf3) 22. Nxd4 {[%emt 0:00:54] Black must now prevent Ne6.} Bxd5 {[%emt 0:02:16]} 23. Rd1 ({Better is} 23. Ne6 $16 Bxe6 24. Qxe6) 23... Bxb3 {[%emt 0:00:00]} 24. Ne6 {[%emt 0:00:46]} (24. Nxb3 $6 Qc7 $11) 24... Qxd1 {[%emt 0:00:00]} 25. Qxd1 {[%emt 0:00:01]} Bxe6 {[%emt 0:00:00]} 26. Qd6 {[%emt 0:00:01]} (26. Qe1 $16 {and life is bright.} Bf5 27. Qxe7 Bxc2 28. Re1) 26... Bc4 $17 {[%emt 0:00:00]} 27. Rf4 {[%emt 0:00:01] [#]} Rbd8 $2 {[%emt 0:00:00][%mdl 8192]} (27... Nf5 $1 $15 28. Qd7 (28. Rxf5 Rfd8 $17) 28... Ne3) 28. Qxe7 $18 {[%emt 0:00:05]} Rfe8 {[%emt 0:00:00]} 29. Qc5 {[%emt 0:00:27]} (29. Qxb4 $18 Rd1+ 30. Kf2) 29... Rd1+ $11 {[%emt 0:00:00]} 30. Kf2 {[%emt 0:00:01]} Bb5 {[%emt 0:00:00] Black is now going downhill.} (30... Rd2+ $1 $11 31. Kg3 Bg8) 31. Kg3 {[%emt 0:00:13]} ({Inferior is} 31. Qxb4 Re2+ 32. Kg3 Rdd2 33. Qf8+ Kh7 $17) (31. Rxb4 $142 Rd2+ 32. Kf3 (32. Kg3 Bf1 $16) 32... Be2+ 33. Kg3) 31... Rd2 {[%emt 0:00:00]} (31... Re5 $16 {was worth a try.} 32. Qxb4 Re3+ 33. Rf3 Re2) 32. Rf2 {[%emt 0:00:04]} (32. Rxb4 $18 Bf1 {[#]} 33. Re4 $1 Rxg2+ 34. Kf3) 32... Rxf2 $4 {[%emt 0:00:00][%mdl 8192]} (32... Be2 $16) 33. Kxf2 $16 {[%emt 0:00:05][%mdl 4096] Endgame KQ-KRB} Re5 {[%emt 0:00:02]} 34. Qc8+ {[%emt 0:00:09]} (34. Qf8+ $142 Kh7 35. Qxb4) 34... Kh7 {[%emt 0:00:01]} 35. c4 {[%emt 0:00:02]} bxc3 {[%emt 0:00:23]} 36. bxc3 {[%cal Bb2c3,Bc3c4][%mdl 32]} ({Much less strong is} 36. Qxc3 $6 h5 $16) 36... Re2+ {[%emt 0:00:00]} 37. Kf3 {[%emt 0:00:02] aiming for Qf5+.} Re5 {[%emt 0:00:00] Prevents Qf5+.} (37... Re1 {was necessary.} 38. c4 Rc1) 38. c4 $18 {[%emt 0:00:10]} Ba4 {[%emt 0:00:00]} 39. Qxa6 {[%emt 0:00:00] Qb6 is the strong threat.} Bd1+ {[%emt 0:00:00]} 40. Kf2 {[%emt 0:00:00]} Be2 {[%emt 0:00:04]} 41. Qc6 {[%emt 0:00:01]} Bxc4 {[%emt 0:00:01]} 42. Qxc4 Rxa5 {[%emt 0:00:01] KQ-KR} 43. Qe4+ {[%emt 0:00:04]} Kh8 {[%emt 0:00:01]} 44. Kg3 {[%emt 0:00:03]} Re5 {[%emt 0:00:00]} 45. Qd3 {[%emt 0:00:01]} Kg8 {[%emt 0:00:00]} 46. Kf4 {[%emt 0:00:02]} Kh8 {[%emt 0:00:00]} 47. h4 {[%emt 0:00:02]} Kg8 {[%emt 0:00:02]} 48. g4 {[%emt 0:00:01]} Kh8 {[%emt 0:00:02]} 49. Qd8+ {[%emt 0:00:02]} Kh7 {[%emt 0:00:01]} 50. Qc8 {[%emt 0:00:01]} Rd5 {[%emt 0:00:03]} 51. Qc2+ {[%emt 0:00:02]} Kh8 {[%emt 0:00:01]} 52. Qc4 {[%emt 0:00:04]} Re5 {[%emt 0:00:01]} 53. Qc8+ {[%emt 0:00:03]} Kh7 {[%emt 0:00:01]} 54. Qd8 {[%emt 0:00:02]} Rc5 {[%emt 0:00:04]} 55. Qd3+ {[%emt 0:00:06]} Kh8 56. Qg6 {[%emt 0:00:00]} Kg8 {[%emt 0:00:04]} 57. Ke4 {[%emt 0:00:00]} Re5+ {[%emt 0:00:01]} 58. Kd4 {[%emt 0:00:00]} Ra5 {[%emt 0:00:02]} 59. Qe8+ {[%emt 0:00:00]} Kh7 {[%emt 0:00:01]} 60. Qe4+ {[%emt 0:00:03]} Kh8 {[%emt 0:00:01]} 61. Qe6 {[%emt 0:00:02]} Kh7 {[%emt 0:00:02]} 62. Kc4 {[%emt 0:00:03]} Re5 {[%emt 0:00:01]} 63. Qd7 {[%emt 0:00:03]} Kh8 {[%emt 0:00:02]} 64. Qd8+ {[%emt 0:00:02]} Kh7 {[%emt 0:00:00]} 65. Qd3+ {[%emt 0:00:01]} Kh8 {[%emt 0:00:01]} 66. Kb4 {[%emt 0:00:01]} Kg8 {[%emt 0:00:02]} 67. Qd8+ {[%emt 0:00:04]} Kh7 {[%emt 0:00:01]} 68. Qa8 {[%emt 0:00:01]} h5 {[%emt 0:00:08]} 69. gxh5 {[%emt 0:00:04]} Rxh5 {[%emt 0:00:01]} 70. Qe4+ {[%emt 0:00:01]} Kh6 {[%emt 0:00:02]} 71. Qf4+ {[%emt 0:00:03]} Kg6 {[%emt 0:00:01]} 72. Qg4+ {[%emt 0:00:01]} Kh6 {[%emt 0:00:01]} 73. Kc4 {[%emt 0:00:02]} Re5 {[%emt 0:00:01]} 74. Kd4 {[%emt 0:00:03]} Kh7 {[%emt 0:00:03]} 75. h5 {[%emt 0:00:01] Hoping for Qg6+.} Rg5 {[%emt 0:00:01]} 76. Qf3 {[%emt 0:00:03]} Kh6 {[%emt 0:00:01]} 77. Qa8 {[%emt 0:00:00][%cal Ra8h8]} Rxh5 {[%emt 0:00:02]} 78. Qh8+ {[%emt 0:00:03]} Kg6 {[%emt 0:00:00]} 79. Qe8+ {[%emt 0:00:01]} Kh6 {[%emt 0:00:01]} 80. Qf7 {[%emt 0:00:03]} Re5 {[%emt 0:00:01]} 81. Qg8 {[%emt 0:00:02]} Rh5 {[%emt 0:00:03]} 82. Ke4 {[%emt 0:00:02]} Re5+ {[%emt 0:00:02]} 83. Kf4 {[%emt 0:00:00]} Kg6 {[%emt 0:00:00]} (83... g5+ $142 84. Kf3 Rf5+ 85. Kg3 Rf4) 84. Qh8 {[%emt 0:00:04]} Rg5 {[%emt 0:00:02]} (84... Rf5+ {keeps fighting.} 85. Ke3 Rh5 86. Qe8+ Kh6) 85. Qe8+ {[%emt 0:00:02]} Kh7 {[%emt 0:00:02]} 86. Qc8 {[%emt 0:00:02]} Re5 {[%emt 0:00:02]} 87. Qa8 {[%emt 0:00:03]} Rg5 {[%emt 0:00:01][%mdl 32768] Weighted Error Value: White=0.55/Black=0.63. An unexpected result.} 1/2-1/2

[Event "Superbet Blitz Poland 2022"]
[Site "Warsaw"]
[Date "2022.05.23"]
[Round "14.3"]
[White "Gavrilescu, David"]
[Black "Caruana, Fabiano"]
[Result "0-1"]
[ECO "B30"]
[WhiteElo "2518"]
[BlackElo "2786"]
[Annotator "TA"]
[PlyCount "138"]
[EventDate "2022.05.22"]
[EventType "tourn"]
[EventCountry "POL"]
[SourceTitle "playchess.com"]
[Source "ChessBase"]
[SourceQuality "1"]
[TimeControl "300+2"]

{[%evp 9,138,17,43,58,48,3,14,14,10,9,15,33,18,17,22,8,14,-9,-18,-16,0,-5,25,27,33,-21,-22,-22,0,-19,-6,-9,0,0,3,2,0,0,6,0,7,0,0,0,0,-9,0,-20,0,-5,0,0,0,0,0,0,-12,-19,0,-9,-4,-80,-25,-25,-19,-64,-28,-305,-26,-26,-33,-40,-36,-34,7,9,8,0,0,0,155,168,282,285,483,446,467,458,545,527,545,540,680,670,812,802,979,906,1100,830,1433,1472,1220,-1879,-1920,-941,0,0,1013,0,0,-29982,-29983,-29983,-29984,-29984,-29985,-29985,-29982,-29985,-29986,-29987,-29988,-29989,-29990,-29991,-29992,-29993,-29994,-29994,-29995]} 1. e4 {[%emt 0:00:02]} c5 {[%emt 0:00:01]} 2. Nf3 {[%emt 0:00:01]} Nc6 {[%emt 0:00:01]} 3. Bb5 {[%emt 0:00:02]} e6 {[%emt 0:00:01]} 4. O-O {[%emt 0:00:12]} Nge7 {[%emt 0:00:02]} 5. Re1 {[%emt 0:00:04]} b6 {[%emt 0:00:02]} 6. c3 {[%emt 0:00:34] B30: Sicilian: 2...Nc6 3 Bb5, lines without ...g6.} a6 {[%emt 0:00:02]} 7. Bf1 {[%emt 0:00:14]} d5 {[%emt 0:00:01]} 8. exd5 {[%emt 0:00:02] The position is equal.} Nxd5 {[%emt 0:00:01]} 9. d4 {[%emt 0:00:02]} cxd4 {[%emt 0:00:06]} 10. Nxd4 {[%emt 0:00:01]} Bb7 {[%emt 0:00:03]} 11. Nxc6 {[%emt 0:00:23]} (11. Rxe6+ {is more complex.} fxe6 12. Nxe6 Qd7 13. Qxd5 Qxd5 14. Nc7+) 11... Bxc6 {[%emt 0:00:02]} 12. Nd2 {[%emt 0:00:03][%cal Bb1d2,Bd2e4,Be4g3,Bg3h5][%mdl 32]} Be7 {[%emt 0:00:21] [#]} 13. Ne4 $146 {[%emt 0:00:28]} ({Predecessor:} 13. Nc4 O-O 14. Ne5 Bb7 15. c4 Nf6 16. Qxd8 Rfxd8 17. Be3 Bc5 18. Bxc5 bxc5 19. Rad1 Kf8 {½-½ (19) Erdos,V (2619)-Deac,B (2643) Mamaia 2021}) 13... O-O {[%emt 0:00:04]} 14. Qh5 {[%emt 0:00:03]} h6 {[%emt 0:00:50]} 15. Ng3 {[%emt 0:00:34]} Bg5 {[%emt 0:00:19]} 16. Bxg5 {[%emt 0:00:40]} Qxg5 {[%emt 0:00:01]} 17. Rad1 {[%emt 0:00:01]} (17. Qxg5 $14 hxg5 18. Ne4) 17... Qxh5 $11 {[%emt 0:01:02]} 18. Nxh5 {[%emt 0:00:02]} Rfd8 {[%emt 0:00:01]} 19. Rd4 {[%emt 0:00:12]} b5 {[%emt 0:00:28]} 20. Red1 {[%emt 0:00:30]} Rab8 {[%emt 0:00:01]} 21. Nf4 {[%emt 0:00:16]} Rdc8 {[%emt 0:00:01]} 22. Nxd5 {[%emt 0:00:07]} Bxd5 {[%emt 0:00:01]} 23. a3 {[%emt 0:00:22]} g5 {[%emt 0:00:07]} 24. g3 {[%emt 0:00:03]} Kg7 {[%emt 0:00:05]} 25. h4 {[%emt 0:00:07]} a5 {[%emt 0:00:02]} 26. Bg2 {[%emt 0:00:02]} Bc4 {[%emt 0:00:20]} 27. R1d2 {[%emt 0:00:12]} Kf6 {[%emt 0:00:15]} 28. Bf3 {[%emt 0:00:10]} Bb3 {[%emt 0:00:23]} 29. Kg2 {[%emt 0:00:02]} Rc7 {[%emt 0:00:20]} 30. hxg5+ {[%emt 0:00:12]} hxg5 {[%emt 0:00:01]} 31. Rd7 {[%emt 0:00:03]} Rbc8 {[%emt 0:00:30]} 32. Rxc7 {[%emt 0:00:03]} Rxc7 {[%mdl 4096] Endgame KRB-KRB} 33. Rd6 {[%emt 0:00:03]} Rc5 {[%emt 0:00:12]} 34. Ra6 {[%emt 0:00:04]} a4 {[%emt 0:00:01]} 35. Rc6 {[%emt 0:00:01] [#]} (35. Kf1 $11 {remains equal.}) 35... Re5 {[%emt 0:00:03]} (35... Rd5 $1 $17 {[%cal Rd5d2] White must now prevent ...Rd2.} 36. Rb6 Rd2 37. Rxb5 Rxb2) 36. Rd6 {[%emt 0:00:02]} Re1 {[%emt 0:00:09]} 37. Rd4 {[%emt 0:00:01]} Rb1 {[%emt 0:00:06]} (37... e5 $5 {[%cal Re5d4]} 38. Rd6+ Ke7 $11) 38. Rb4 $2 {[%emt 0:00:03][%mdl 8192]} (38. Rd2 $11 {and White is okay.}) 38... Bc4 $2 {[%emt 0:00:05]} (38... Rxb2 $19 {Threatens to win with ...Ra2.} 39. Be4 (39. Rxb5 $2 Ra2 $19) 39... Ra2 40. Rxb5 Rxa3) 39. Bc6 {[%emt 0:00:02]} g4 {[%emt 0:00:02]} 40. f3 {[%emt 0:00:03]} gxf3+ {[%emt 0:00:02]} 41. Kxf3 {[%emt 0:00:01]} Rg1 {[%emt 0:00:06]} 42. Bxb5 {[%emt 0:00:01]} Bd5+ {[%emt 0:00:01]} 43. Ke3 {[%emt 0:00:06]} Rxg3+ {[%emt 0:00:01]} 44. Kd4 {[%emt 0:00:01]} Ba2 $2 {[%emt 0:00:04]} ({Black should try} 44... Bb3 $11) 45. Bxa4 $16 {[%emt 0:00:02]} e5+ {[%emt 0:00:00]} (45... Bd5 $142 46. Bb5 Rg8) 46. Kc5 $18 {[%emt 0:00:01]} Be6 $2 {[%emt 0:00:03]} (46... Rg8 47. Bc6 Rc8) 47. Bc6 {[%emt 0:00:01]} Rg5 {[%emt 0:00:03]} 48. Kd6 {[%emt 0:00:01]} Rg1 {[%emt 0:00:02]} 49. a4 {[%emt 0:00:01]} Rd1+ {[%emt 0:00:00]} 50. Kc7 {[%emt 0:00:01]} Ra1 {[%emt 0:00:03]} 51. Kb6 {[%emt 0:00:01]} Ke7 {[%emt 0:00:04]} 52. a5 {[%emt 0:00:01]} Bc8 {[%emt 0:00:00]} 53. Rb5 {[%emt 0:00:01]} Kd6 {[%emt 0:00:03]} 54. Bb7 {[%emt 0:00:02]} Bxb7 55. Kxb7 {[%emt 0:00:01] KR-KR} e4 {[%emt 0:00:03]} 56. a6 $4 {[%emt 0:00:01][%mdl 8192]} (56. c4 $18 e3 57. Rd5+ Ke6 58. Rd3) 56... e3 $19 {[%emt 0:00:01] Strongly threatening ...e2.} 57. Rb4 {[%emt 0:00:11]} f5 $2 {[%emt 0:00:01]} (57... Ke5 $19 {...e2 is the strong threat.} 58. Rb5+ Kd6 59. Rb6+ Ke7) 58. Rd4+ $1 $11 {[%emt 0:00:03]} Ke7 $2 {[%emt 0:00:04][%mdl 8192] [#]} (58... Ke6 $11 59. Rd3 f4) 59. Rd5 $2 {[%emt 0:00:02]} ({Only move:} 59. Rd3 $1 $18 {[%cal Rd3e3]}) 59... Kf6 {[%emt 0:00:03] ( -> ...e2)} 60. Rd8 $2 {[%emt 0:00:02][%mdl 8192] [#]} (60. Rd6+ $11 Kf7 61. Rd7+ Kf6 62. Rd6+ Ke5 63. Rd8) 60... e2 $1 {[%emt 0:00:02] Black mates.} (60... Ke7 $2 61. Rd3 f4 62. Rd4 $18) 61. Re8 {[%emt 0:00:01]} e1=Q {[%emt 0:00:01]} 62. Rxe1 {[%emt 0:00:01]} Rxe1 {[%emt 0:00:01] KR-K3P} 63. a7 {[%emt 0:00:01]} Re7+ {[%emt 0:00:01]} 64. Ka6 {[%emt 0:00:01]} Re8 {[%emt 0:00:01]} 65. b4 {[%emt 0:00:02]} f4 {[%emt 0:00:01]} 66. b5 {[%emt 0:00:01]} f3 {[%emt 0:00:01]} 67. b6 {[%emt 0:00:01]} f2 {[%emt 0:00:00]} 68. b7 {[%emt 0:00:00]} f1=Q+ {[%emt 0:00:02]} 69. Kb6 {[%emt 0:00:02]} Qf2+ {[%emt 0:00:03] Black used his chance.  Weighted Error Value: White=0.52/Black=0.45} 0-1